[Event "Masters Tournament (MTO)"]
[Site "Biel, Switzerland"]
[Date "2026.07.18"]
[Round "6.34"]
[White "Gerrits, Augustin"]
[Black "Damen, Josephine"]
[Result "1-0"]
[TimeControl "100+30+30sec/move"]
[WhiteTitle "-"]
[BlackTitle "-"]
[WhiteFideId "285358"]
[BlackFideId "1074369"]
[WhiteElo "2072"]
[BlackElo "1971"]

1. e4 {[%clk 01:40:54]} {[%emt 00:00:06]} e5 {[%clk 01:40:55]} {[%emt
00:00:06]} 2. Nf3 {[%clk 01:41:01]} {[%emt 00:00:23]} Nc6 {[%clk 01:41:20]}
{[%emt 00:00:04]} 3. Bb5 {[%clk 01:40:52]} {[%emt 00:00:39]} a6 {[%clk
01:41:45]} {[%emt 00:00:06]} 4. Ba4 {[%clk 01:40:52]} {[%emt 00:00:30]} Nf6
{[%clk 01:42:08]} {[%emt 00:00:07]} 5. O-O {[%clk 01:40:49]} {[%emt 00:00:32]}
Be7 {[%clk 01:42:26]} {[%emt 00:00:12]} 6. Re1 {[%clk 01:40:42]} {[%emt
00:00:37]} b5 {[%clk 01:42:52]} {[%emt 00:00:05]} 7. Bb3 {[%clk 01:40:42]}
{[%emt 00:00:30]} d6 {[%clk 01:38:56]} {[%emt 00:04:25]} 8. a4 {[%clk
01:40:36]} {[%emt 00:00:37]} Bg4 {[%clk 01:34:53]} {[%emt 00:04:33]} 9. c3
{[%clk 01:40:33]} {[%emt 00:00:32]} O-O {[%clk 01:34:14]} {[%emt 00:01:08]} 10.
d3 {[%clk 01:36:04]} {[%emt 00:05:00]} Na5 {[%clk 01:32:14]} {[%emt 00:02:30]}
11. Bc2 {[%clk 01:35:33]} {[%emt 00:01:01]} c5 {[%clk 01:32:37]} {[%emt
00:00:07]} 12. Nbd2 {[%clk 01:31:41]} {[%emt 00:04:22]} Nc6 {[%clk 01:26:08]}
{[%emt 00:06:59]} 13. h3 {[%clk 01:28:54]} {[%emt 00:03:18]} Bh5 {[%clk
01:26:12]} {[%emt 00:00:25]} 14. g4 {[%clk 01:22:28]} {[%emt 00:06:56]} Bg6
{[%clk 01:26:33]} {[%emt 00:00:09]} 15. Nf1 {[%clk 01:20:55]} {[%emt 00:02:03]}
Qd7 {[%clk 00:59:08]} {[%emt 00:27:55]} 16. Ne3 {[%clk 01:09:26]} {[%emt
00:11:59]} d5 {[%clk 00:29:13]} {[%emt 00:30:26]} 17. Nh4 {[%clk 01:05:03]}
{[%emt 00:04:52]} dxe4 {[%clk 00:25:44]} {[%emt 00:04:00]} 18. Nxg6 {[%clk
01:04:46]} {[%emt 00:00:47]} hxg6 {[%clk 00:26:06]} {[%emt 00:00:08]} 19. dxe4
{[%clk 01:05:07]} {[%emt 00:00:08]} Qxd1 {[%clk 00:26:07]} {[%emt 00:00:29]} 20.
Rxd1 {[%clk 01:05:22]} {[%emt 00:00:14]} Ra7 {[%clk 00:21:29]} {[%emt
00:05:09]} 21. Nd5 {[%clk 00:52:23]} {[%emt 00:13:29]} Rd7 {[%clk 00:18:15]}
{[%emt 00:03:44]} 1-0

[Event "Masters Tournament (MTO)"]
[Site "Biel, Switzerland"]
[Date "2026.07.18"]
[Round "6.35"]
[White "St Pierre, Joseph"]
[Black "Aryan, Mehta"]
[Result "0-1"]
[TimeControl "100+30+30sec/move"]
[WhiteTitle "-"]
[BlackTitle "-"]
[WhiteFideId "30953472"]
[BlackFideId "33329664"]
[WhiteElo "2067"]
[BlackElo "1979"]

1. e4 {[%clk 01:40:11]} {[%emt 00:00:48]} e5 {[%clk 01:40:30]} {[%emt
00:00:30]} 2. Nf3 {[%clk 01:40:35]} {[%emt 00:00:06]} Nc6 {[%clk 01:40:55]}
{[%emt 00:00:05]} 3. Bb5 {[%clk 01:40:33]} {[%emt 00:00:33]} a6 {[%clk
01:41:13]} {[%emt 00:00:12]} 4. Bxc6 {[%clk 01:40:31]} {[%emt 00:00:32]} dxc6
{[%clk 01:41:34]} {[%emt 00:00:09]} 5. O-O {[%clk 01:40:54]} {[%emt 00:00:06]}
f6 {[%clk 01:41:54]} {[%emt 00:00:10]} 6. d4 {[%clk 01:41:17]} {[%emt
00:00:07]} exd4 {[%clk 01:42:20]} {[%emt 00:00:05]} 7. Nxd4 {[%clk 01:41:42]}
{[%emt 00:00:05]} c5 {[%clk 01:42:44]} {[%emt 00:00:06]} 8. Nb3 {[%clk
01:42:07]} {[%emt 00:00:05]} Qxd1 {[%clk 01:43:08]} {[%emt 00:00:06]} 9. Rxd1
{[%clk 01:42:33]} {[%emt 00:00:04]} Bg4 {[%clk 01:43:31]} {[%emt 00:00:07]} 10.
f3 {[%clk 01:42:57]} {[%emt 00:00:06]} Be6 {[%clk 01:43:58]} {[%emt 00:00:03]}
11. Be3 {[%clk 01:37:56]} {[%emt 00:05:31]} b6 {[%clk 01:42:17]} {[%emt
00:02:10]} 12. Nc3 {[%clk 01:36:56]} {[%emt 00:01:30]} Bd6 {[%clk 01:28:11]}
{[%emt 00:14:36]} 13. a4 {[%clk 01:32:51]} {[%emt 00:04:35]} Kf7 {[%clk
01:09:13]} {[%emt 00:19:28]} 14. Nd5 {[%clk 01:29:55]} {[%emt 00:03:26]} Bxd5
{[%clk 01:06:27]} {[%emt 00:03:15]} 15. Rxd5 {[%clk 01:30:14]} {[%emt
00:00:13]} Ne7 {[%clk 01:06:03]} {[%emt 00:00:54]} 16. Rd2 {[%clk 01:30:35]}
{[%emt 00:00:08]} Nc6 {[%clk 01:02:06]} {[%emt 00:04:26]} 17. a5 {[%clk
01:23:06]} {[%emt 00:08:00]} Rhd8 {[%clk 00:49:59]} {[%emt 00:12:38]} 18. axb6
{[%clk 01:05:17]} {[%emt 00:18:19]} cxb6 {[%clk 00:50:14]} {[%emt 00:00:14]} 19.
Rad1 {[%clk 01:03:14]} {[%emt 00:02:34]} Ke6 {[%clk 00:44:52]} {[%emt
00:05:50]} 20. f4 {[%clk 00:58:58]} {[%emt 00:04:47]} a5 {[%clk 00:39:47]}
{[%emt 00:05:36]} 21. c3 {[%clk 00:53:38]} {[%emt 00:05:50]} a4 {[%clk
00:37:12]} {[%emt 00:03:04]} 22. Nc1 {[%clk 00:54:02]} {[%emt 00:00:06]} Na5
{[%clk 00:35:12]} {[%emt 00:02:31]} 23. e5 {[%clk 00:42:38]} {[%emt 00:11:54]}
Be7 {[%clk 00:28:34]} {[%emt 00:07:07]} 24. Rxd8 {[%clk 00:39:26]} {[%emt
00:03:42]} Rxd8 {[%clk 00:28:54]} {[%emt 00:00:10]} 25. Rxd8 {[%clk 00:39:37]}
{[%emt 00:00:20]} Bxd8 {[%clk 00:29:22]} {[%emt 00:00:01]} 26. exf6 {[%clk
00:39:56]} {[%emt 00:00:12]} Bxf6 {[%clk 00:29:12]} {[%emt 00:00:39]} 27. Kf2
{[%clk 00:39:38]} {[%emt 00:00:49]} Nc4 {[%clk 00:27:33]} {[%emt 00:02:09]} 28.
Nd3 {[%clk 00:40:02]} {[%emt 00:00:06]} Nxe3 {[%clk 00:25:46]} {[%emt
00:02:17]} 29. Kxe3 {[%clk 00:40:25]} {[%emt 00:00:07]} Kd5 {[%clk 00:26:11]}
{[%emt 00:00:05]} 30. g4 {[%clk 00:38:28]} {[%emt 00:02:27]} h6 {[%clk
00:22:56]} {[%emt 00:03:44]} 31. Ne5 {[%clk 00:26:25]} {[%emt 00:12:33]} Bxe5
{[%clk 00:20:55]} {[%emt 00:02:31]} 32. c4+ {[%clk 00:26:35]} {[%emt 00:00:20]}
Kxc4 {[%clk 00:20:20]} {[%emt 00:01:05]} 33. fxe5 {[%clk 00:27:01]} {[%emt
00:00:05]} Kd5 {[%clk 00:20:45]} {[%emt 00:00:05]} 34. Kf4 {[%clk 00:27:22]}
{[%emt 00:00:09]} 0-1

[Event "Masters Tournament (MTO)"]
[Site "Biel, Switzerland"]
[Date "2026.07.18"]
[Round "6.36"]
[White "Al Ibrahim, Abdulrahman"]
[Black "Heitmann, Erik"]
[Result "1/2-1/2"]
[TimeControl "100+30+30sec/move"]
[WhiteTitle "-"]
[BlackTitle "-"]
[WhiteFideId "10300503"]
[BlackFideId "34608940"]
[WhiteElo "2016"]
[BlackElo "1949"]

1. e4 {[%clk 01:40:56]} {[%emt 00:00:01]} c5 {[%clk 01:40:57]} {[%emt
00:00:03]} 2. Nf3 {[%clk 01:41:13]} {[%emt 00:00:12]} d6 {[%clk 01:41:23]}
{[%emt 00:00:06]} 3. d4 {[%clk 01:41:35]} {[%emt 00:00:07]} cxd4 {[%clk
01:41:49]} {[%emt 00:00:04]} 4. Nxd4 {[%clk 01:41:59]} {[%emt 00:00:06]} Nf6
{[%clk 01:42:15]} {[%emt 00:00:04]} 5. Nc3 {[%clk 01:42:19]} {[%emt 00:00:10]}
a6 {[%clk 01:42:32]} {[%emt 00:00:12]} 6. a4 {[%clk 01:42:31]} {[%emt
00:00:19]} e5 {[%clk 01:42:37]} {[%emt 00:00:23]} 7. Nf3 {[%clk 01:42:55]}
{[%emt 00:00:08]} Be6 {[%clk 01:41:42]} {[%emt 00:01:25]} 8. Ng5 {[%clk
01:40:58]} {[%emt 00:02:27]} Qc7 {[%clk 01:36:55]} {[%emt 00:05:17]} 9. Nxe6
{[%clk 01:41:09]} {[%emt 00:00:19]} fxe6 {[%clk 01:37:21]} {[%emt 00:00:04]} 10.
Be2 {[%clk 01:40:12]} {[%emt 00:01:27]} Be7 {[%clk 01:36:56]} {[%emt 00:00:56]}
11. O-O {[%clk 01:40:35]} {[%emt 00:00:06]} O-O {[%clk 01:36:01]} {[%emt
00:01:23]} 12. Be3 {[%clk 01:40:29]} {[%emt 00:00:38]} Nbd7 {[%clk 01:32:05]}
{[%emt 00:04:26]} 13. a5 {[%clk 01:36:51]} {[%emt 00:04:08]} Qc6 {[%clk
01:29:51]} {[%emt 00:02:44]} 14. Bf3 {[%clk 01:25:11]} {[%emt 00:12:10]} Nc5
{[%clk 01:29:12]} {[%emt 00:01:09]} 15. Re1 {[%clk 01:24:17]} {[%emt 00:01:24]}
Rad8 {[%clk 01:23:53]} {[%emt 00:05:48]} 16. b4 {[%clk 01:23:41]} {[%emt
00:01:07]} Ncd7 {[%clk 01:14:12]} {[%emt 00:10:12]} 17. Ra3 {[%clk 01:11:54]}
{[%emt 00:12:17]} Rc8 {[%clk 01:10:43]} {[%emt 00:03:58]} 18. Qa1 {[%clk
01:05:14]} {[%emt 00:07:10]} d5 {[%clk 01:01:23]} {[%emt 00:09:50]} 19. exd5
{[%clk 00:43:18]} {[%emt 00:22:27]} Nxd5 {[%clk 00:41:02]} {[%emt 00:20:50]} 20.
Nxd5 {[%clk 00:23:25]} {[%emt 00:20:23]} exd5 {[%clk 00:41:12]} {[%emt
00:00:20]} 21. c3 {[%clk 00:19:08]} {[%emt 00:04:47]} Qe6 {[%clk 00:25:39]}
{[%emt 00:16:02]} 22. Qd1 {[%clk 00:18:38]} {[%emt 00:01:01]} Nf6 {[%clk
00:22:43]} {[%emt 00:03:26]} 23. Bg5 {[%clk 00:18:28]} {[%emt 00:00:40]} Rcd8
{[%clk 00:20:33]} {[%emt 00:02:40]} 24. Ra1 {[%clk 00:17:44]} {[%emt 00:01:14]}
h6 {[%clk 00:16:10]} {[%emt 00:04:52]} 1/2-1/2

[Event "Masters Tournament (MTO)"]
[Site "Biel, Switzerland"]
[Date "2026.07.18"]
[Round "6.37"]
[White "Wiesmann, Dominique"]
[Black "Monteverde, Jonathan"]
[Result "0-1"]
[TimeControl "100+30+30sec/move"]
[WhiteTitle "-"]
[BlackTitle "-"]
[WhiteFideId "1308262"]
[BlackFideId "1314580"]
[WhiteElo "1978"]
[BlackElo "2098"]

1. c4 {[%clk 01:40:56]} {[%emt 00:00:01]} c5 {[%clk 01:40:48]} {[%emt
00:00:13]} 2. g3 {[%clk 01:41:17]} {[%emt 00:00:09]} g6 {[%clk 01:41:00]}
{[%emt 00:00:18]} 3. Bg2 {[%clk 01:41:35]} {[%emt 00:00:12]} Bg7 {[%clk
01:41:23]} {[%emt 00:00:06]} 4. Nc3 {[%clk 01:41:15]} {[%emt 00:00:50]} Nc6
{[%clk 01:40:27]} {[%emt 00:01:27]} 5. Nf3 {[%clk 01:41:17]} {[%emt 00:00:28]}
d6 {[%clk 01:40:31]} {[%emt 00:00:26]} 6. O-O {[%clk 01:41:06]} {[%emt
00:00:40]} e5 {[%clk 01:40:49]} {[%emt 00:00:13]} 7. a3 {[%clk 01:40:05]}
{[%emt 00:01:31]} a5 {[%clk 01:40:53]} {[%emt 00:00:26]} 8. Ne1 {[%clk
01:39:19]} {[%emt 00:01:16]} Be6 {[%clk 01:41:02]} {[%emt 00:00:21]} 9. Nd5
{[%clk 01:38:16]} {[%emt 00:01:33]} Nge7 {[%clk 01:35:36]} {[%emt 00:05:56]} 10.
Nc2 {[%clk 01:34:25]} {[%emt 00:04:21]} O-O {[%clk 01:29:47]} {[%emt 00:06:18]}
11. d3 {[%clk 01:32:50]} {[%emt 00:02:06]} Rb8 {[%clk 01:29:18]} {[%emt
00:01:00]} 12. Rb1 {[%clk 01:28:02]} {[%emt 00:05:17]} b5 {[%clk 01:28:36]}
{[%emt 00:01:12]} 13. b4 {[%clk 01:27:55]} {[%emt 00:00:37]} bxc4 {[%clk
00:50:03]} {[%emt 00:39:02]} 14. dxc4 {[%clk 01:28:00]} {[%emt 00:00:26]} axb4
{[%clk 00:50:23]} {[%emt 00:00:10]} 15. axb4 {[%clk 01:26:57]} {[%emt
00:01:33]} Bxd5 {[%clk 00:50:42]} {[%emt 00:00:11]} 16. cxd5 {[%clk 01:24:16]}
{[%emt 00:03:11]} Nxb4 {[%clk 00:51:02]} {[%emt 00:00:10]} 17. Nxb4 {[%clk
01:21:08]} {[%emt 00:03:38]} cxb4 {[%clk 00:48:36]} {[%emt 00:02:56]} 18. Qa4
{[%clk 01:13:49]} {[%emt 00:07:50]} Qb6 {[%clk 00:48:44]} {[%emt 00:00:21]} 19.
Ba3 {[%clk 01:12:08]} {[%emt 00:02:10]} b3 {[%clk 00:48:35]} {[%emt 00:00:40]}
20. Rfc1 {[%clk 01:08:42]} {[%emt 00:03:56]} e4 {[%clk 00:29:33]} {[%emt
00:19:32]} 21. Qxe4 {[%clk 00:56:40]} {[%emt 00:12:31]} Rfe8 {[%clk 00:28:58]}
{[%emt 00:01:06]} 22. Qd3 {[%clk 00:55:04]} {[%emt 00:02:06]} Nf5 {[%clk
00:27:51]} {[%emt 00:01:36]} 23. Rc6 {[%clk 00:50:53]} {[%emt 00:04:42]} Qd4
{[%clk 00:23:50]} {[%emt 00:04:31]} 24. Rxb3 {[%clk 00:44:36]} {[%emt
00:06:47]} Rxb3 {[%clk 00:18:57]} 25. Qxb3 {[%clk 00:44:36]} {[%emt 00:05:52]}
Rxe2 {[%clk 00:18:49]} 26. Rc8+ {[%clk 00:41:23]} {[%emt 00:04:21]} Bf8 {[%clk
00:19:09]} {[%emt 00:00:10]} 27. Qf3 {[%clk 00:41:06]} {[%emt 00:00:47]} Re1+
{[%clk 00:18:19]} {[%emt 00:01:21]} 28. Bf1 {[%clk 00:41:23]} {[%emt 00:00:13]}
Qa1 {[%clk 00:18:20]} {[%emt 00:00:29]} 29. Qd3 {[%clk 00:36:46]} {[%emt
00:05:07]} Rxf1+ {[%clk 00:18:40]} {[%emt 00:00:10]} 30. Qxf1 {[%clk 00:37:11]}
{[%emt 00:00:04]} Qxa3 {[%clk 00:19:02]} {[%emt 00:00:09]} 31. Qe1 {[%clk
00:34:01]} {[%emt 00:03:40]} Qa4 {[%clk 00:16:23]} {[%emt 00:03:09]} 32. h3
{[%clk 00:28:39]} {[%emt 00:05:51]} Qd7 {[%clk 00:15:05]} {[%emt 00:01:49]} 33.
Rb8 {[%clk 00:27:39]} {[%emt 00:01:30]} Nxg3 {[%clk 00:12:28]} {[%emt
00:03:06]} 34. Rxf8+ {[%clk 00:27:39]} {[%emt 00:00:31]} Kxf8 {[%clk 00:12:52]}
{[%emt 00:00:06]} 35. fxg3 {[%clk 00:28:00]} {[%emt 00:00:08]} Qxh3 {[%clk
00:13:16]} {[%emt 00:00:06]} 36. Qc3 {[%clk 00:27:45]} {[%emt 00:00:46]} Kg8
{[%clk 00:13:15]} {[%emt 00:00:30]} 37. Qa3 {[%clk 00:26:35]} {[%emt 00:01:41]}
Qd7 {[%clk 00:12:03]} {[%emt 00:01:42]} 38. Qa8+ {[%clk 00:26:44]} {[%emt
00:00:21]} Kg7 {[%clk 00:12:26]} {[%emt 00:00:07]} 39. Qa1+ {[%clk 00:26:11]}
{[%emt 00:01:03]} f6 {[%clk 00:12:48]} {[%emt 00:00:08]} 40. Qa6 {[%clk
00:25:46]} {[%emt 00:00:54]} Qe7 {[%clk 00:12:44]} {[%emt 00:00:34]} 41. Kf2
{[%clk 00:24:50]} {[%emt 00:01:27]} h5 {[%clk 00:12:40]} {[%emt 00:00:33]} 42.
Qc8 {[%clk 00:23:27]} {[%emt 00:01:54]} Qe5 {[%clk 00:12:26]} {[%emt 00:00:44]}
43. Qd7+ {[%clk 00:23:33]} {[%emt 00:00:24]} Kh6 {[%clk 00:12:43]} {[%emt
00:00:13]} 44. Qf7 {[%clk 00:23:48]} {[%emt 00:00:15]} Kg5 {[%clk 00:10:06]}
{[%emt 00:03:07]} 45. Qe6 {[%clk 00:23:27]} {[%emt 00:00:50]} h4 {[%clk
00:10:20]} {[%emt 00:00:17]} 46. gxh4+ {[%clk 00:22:40]} {[%emt 00:01:17]} Kxh4
{[%clk 00:10:36]} {[%emt 00:00:13]} 47. Kf3 {[%clk 00:20:19]} {[%emt 00:02:51]}
Qg3+ {[%clk 00:10:10]} {[%emt 00:00:56]} 48. Ke4 {[%clk 00:19:41]} {[%emt
00:01:08]} Kg5 {[%clk 00:08:08]} {[%emt 00:02:32]} 49. Kd4 {[%clk 00:18:20]}
{[%emt 00:01:51]} Qe5+ {[%clk 00:08:10]} {[%emt 00:00:29]} 50. Kc4 {[%clk
00:18:21]} {[%emt 00:00:29]} Kf4 {[%clk 00:06:02]} {[%emt 00:02:37]} 51. Kb5
{[%clk 00:17:40]} {[%emt 00:01:11]} g5 {[%clk 00:06:05]} {[%emt 00:00:28]} 52.
Kc6 {[%clk 00:18:01]} {[%emt 00:00:09]} g4 {[%clk 00:06:14]} {[%emt 00:00:21]}
53. Qd7 {[%clk 00:15:33]} {[%emt 00:02:57]} f5 {[%clk 00:04:59]} {[%emt
00:01:45]} 54. Qh7 {[%clk 00:13:41]} {[%emt 00:02:22]} g3 {[%clk 00:04:26]}
{[%emt 00:01:03]} 55. Qh1 {[%clk 00:11:28]} {[%emt 00:02:43]} Kg5 {[%clk
00:03:57]} {[%emt 00:01:00]} 56. Qf3 {[%clk 00:09:12]} {[%emt 00:02:45]} f4
{[%clk 00:03:54]} {[%emt 00:00:33]} 57. Qh1 {[%clk 00:08:10]} {[%emt 00:01:32]}
Kg4 {[%clk 00:04:11]} {[%emt 00:00:13]} 58. Qh7 {[%clk 00:08:22]} {[%emt
00:00:18]} f3 {[%clk 00:03:57]} {[%emt 00:00:45]} 59. Qg6+ {[%clk 00:08:27]}
{[%emt 00:00:25]} Kf4 {[%clk 00:04:17]} {[%emt 00:00:10]} 60. Qh6+ {[%clk
00:08:36]} {[%emt 00:00:21]} Ke4 {[%clk 00:04:34]} {[%emt 00:00:13]} 61. Qg6+
{[%clk 00:08:15]} {[%emt 00:00:50]} Ke3 {[%clk 00:04:42]} {[%emt 00:00:22]} 62.
Qh6+ {[%clk 00:08:27]} {[%emt 00:00:18]} Ke2 {[%clk 00:04:05]} {[%emt
00:01:08]} 63. Qc1 {[%clk 00:07:50]} {[%emt 00:01:07]} f2 {[%clk 00:04:02]}
{[%emt 00:00:32]} 64. Qc2+ {[%clk 00:08:04]} {[%emt 00:00:17]} Kf3 {[%clk
00:04:18]} {[%emt 00:00:14]} 0-1

[Event "Masters Tournament (MTO)"]
[Site "Biel, Switzerland"]
[Date "2026.07.18"]
[Round "6.38"]
[White "Von Burg, Carl Alexander"]
[Black "Bucher, Dominic"]
[Result "1/2-1/2"]
[TimeControl "100+30+30sec/move"]
[WhiteClock "00:04:38"]
[BlackClock "00:02:44"]
[WhiteTitle "-"]
[BlackTitle "-"]
[WhiteFideId "1352458"]
[BlackFideId "1353144"]
[WhiteElo "1947"]
[BlackElo "2078"]

1. e4 {[%clk 01:40:53]} {[%emt 00:00:04]} e6 {[%clk 01:40:26]} {[%emt
00:00:34]} 2. d4 {[%clk 01:41:15]} {[%emt 00:00:08]} d5 {[%clk 01:40:14]}
{[%emt 00:00:41]} 3. e5 {[%clk 01:41:39]} {[%emt 00:00:06]} c5 {[%clk
01:40:35]} {[%emt 00:00:09]} 4. c3 {[%clk 01:42:08]} {[%emt 00:00:02]} Nc6
{[%clk 01:40:53]} {[%emt 00:00:11]} 5. Nf3 {[%clk 01:42:31]} {[%emt 00:00:07]}
Bd7 {[%clk 01:41:06]} {[%emt 00:00:18]} 6. Be2 {[%clk 01:42:50]} {[%emt
00:00:11]} Nge7 {[%clk 01:39:49]} {[%emt 00:01:47]} 7. Na3 {[%clk 01:42:48]}
{[%emt 00:00:32]} cxd4 {[%clk 01:39:46]} {[%emt 00:00:33]} 8. cxd4 {[%clk
01:42:58]} {[%emt 00:00:20]} a6 {[%clk 01:39:48]} {[%emt 00:00:28]} 9. O-O
{[%clk 01:41:45]} {[%emt 00:01:41]} Nf5 {[%clk 01:39:38]} {[%emt 00:00:41]} 10.
Nc2 {[%clk 01:40:33]} {[%emt 00:01:42]} Be7 {[%clk 01:39:22]} {[%emt 00:00:47]}
11. b4 {[%clk 01:37:31]} {[%emt 00:03:31]} O-O {[%clk 01:37:13]} {[%emt
00:02:38]} 12. Rb1 {[%clk 01:33:58]} {[%emt 00:04:04]} Qc7 {[%clk 01:31:13]}
{[%emt 00:06:30]} 13. Bf4 {[%clk 01:25:43]} {[%emt 00:08:44]} Rac8 {[%clk
01:24:16]} {[%emt 00:07:28]} 14. Bd3 {[%clk 01:24:13]} {[%emt 00:02:00]} g6
{[%clk 01:07:12]} {[%emt 00:17:35]} 15. Qd2 {[%clk 01:04:36]} {[%emt 00:20:06]}
Na7 {[%clk 01:02:27]} {[%emt 00:05:16]} 16. Rfc1 {[%clk 01:02:27]} {[%emt
00:02:37]} Qb6 {[%clk 00:51:48]} {[%emt 00:11:10]} 17. g4 {[%clk 00:57:56]}
{[%emt 00:05:01]} Ng7 {[%clk 00:50:06]} {[%emt 00:02:12]} 18. a3 {[%clk
00:39:37]} {[%emt 00:18:50]} Nb5 {[%clk 00:43:06]} {[%emt 00:07:30]} 19. Be3
{[%clk 00:32:46]} {[%emt 00:07:20]} Rc7 {[%clk 00:39:20]} {[%emt 00:04:17]} 20.
Bxb5 {[%clk 00:27:27]} {[%emt 00:05:49]} Bxb5 {[%clk 00:39:10]} {[%emt
00:00:39]} 21. Nce1 {[%clk 00:27:17]} {[%emt 00:00:39]} Rfc8 {[%clk 00:37:59]}
{[%emt 00:01:43]} 22. Rxc7 {[%clk 00:25:51]} Rxc7 {[%clk 00:37:48]} {[%emt
00:02:36]} 23. Rc1 {[%clk 00:25:38]} {[%emt 00:00:43]} Bc4 {[%clk 00:33:40]}
{[%emt 00:04:38]} 24. Bg5 {[%clk 00:23:34]} {[%emt 00:02:34]} Ne8 {[%clk
00:27:32]} {[%emt 00:06:38]} 25. Bxe7 {[%clk 00:22:24]} {[%emt 00:01:40]} Rxe7
{[%clk 00:27:52]} {[%emt 00:00:10]} 26. h4 {[%clk 00:20:02]} {[%emt 00:02:52]}
f5 {[%clk 00:21:34]} {[%emt 00:06:48]} 27. exf6 {[%clk 00:16:20]} {[%emt
00:04:13]} Nxf6 {[%clk 00:21:52]} {[%emt 00:00:11]} 28. Ne5 {[%clk 00:15:32]}
{[%emt 00:01:18]} Ne4 {[%clk 00:20:23]} {[%emt 00:02:00]} 29. Qe3 {[%clk
00:15:47]} {[%emt 00:00:14]} Nd6 {[%clk 00:20:10]} {[%emt 00:00:43]} 30. N1f3
{[%clk 00:15:21]} {[%emt 00:00:55]} Qd8 {[%clk 00:19:30]} {[%emt 00:01:11]} 31.
h5 {[%clk 00:14:26]} {[%emt 00:01:26]} gxh5 {[%clk 00:14:58]} {[%emt 00:05:02]}
32. Qg5+ {[%clk 00:14:32]} {[%emt 00:00:21]} Kh8 {[%clk 00:14:41]} {[%emt
00:00:50]} 33. Qf6+ {[%clk 00:14:35]} {[%emt 00:00:26]} Kg8 {[%clk 00:14:55]}
{[%emt 00:00:16]} 34. Qg5+ {[%clk 00:10:38]} {[%emt 00:04:26]} Kh8 {[%clk
00:15:09]} {[%emt 00:00:17]} 35. Qxh5 {[%clk 00:07:59]} {[%emt 00:03:10]} Rg7
{[%clk 00:13:38]} {[%emt 00:02:00]} 36. Kg2 {[%clk 00:08:06]} {[%emt 00:00:23]}
Be2 {[%clk 00:08:58]} {[%emt 00:05:10]} 37. Rh1 {[%clk 00:07:43]} {[%emt
00:00:52]} Bxf3+ {[%clk 00:08:59]} {[%emt 00:00:30]} 38. Kxf3 {[%clk 00:07:21]}
{[%emt 00:00:52]} Qf6+ {[%clk 00:09:04]} {[%emt 00:00:25]} 39. Ke2 {[%clk
00:06:59]} {[%emt 00:00:52]} Ne4 {[%clk 00:02:27]} {[%emt 00:07:08]} 40. Qe8+
{[%clk 00:01:14]} {[%emt 00:06:13]} Rg8 {[%clk 00:02:38]} {[%emt 00:00:20]} 41.
Qf7 {[%clk 00:29:01]} {[%emt 00:02:42]} Qxf7 {[%clk 00:32:35]} {[%emt
00:00:34]} 42. Nxf7+ {[%clk 00:29:15]} {[%emt 00:00:13]} Kg7 {[%clk 00:33:00]}
{[%emt 00:00:08]} 43. Ne5 {[%clk 00:28:42]} {[%emt 00:01:02]} Rc8 {[%clk
00:33:13]} {[%emt 00:00:18]} 44. Nd3 {[%clk 00:26:30]} {[%emt 00:02:42]} Rc2+
{[%clk 00:26:42]} {[%emt 00:07:01]} 45. Ke3 {[%clk 00:26:32]} {[%emt 00:00:26]}
Nd6 {[%clk 00:22:42]} {[%emt 00:04:32]} 46. a4 {[%clk 00:19:59]} {[%emt
00:07:03]} Nc4+ {[%clk 00:21:22]} {[%emt 00:01:50]} 47. Kf3 {[%clk 00:20:16]}
{[%emt 00:00:11]} b6 {[%clk 00:18:19]} {[%emt 00:03:36]} 48. Nf4 {[%clk
00:17:12]} {[%emt 00:03:31]} e5 {[%clk 00:18:30]} {[%emt 00:00:22]} 49. Nxd5
{[%clk 00:16:05]} {[%emt 00:01:37]} exd4 {[%clk 00:18:21]} {[%emt 00:00:39]} 50.
Ke4 {[%clk 00:15:29]} {[%emt 00:01:05]} Nb2 {[%clk 00:17:07]} {[%emt 00:01:44]}
51. Kxd4 {[%clk 00:14:52]} {[%emt 00:01:07]} Nxa4 {[%clk 00:17:19]} {[%emt
00:00:18]} 52. f4 {[%clk 00:14:12]} {[%emt 00:01:09]} Rd2+ {[%clk 00:16:09]}
{[%emt 00:01:41]} 53. Ke5 {[%clk 00:14:22]} {[%emt 00:00:20]} a5 {[%clk
00:16:17]} {[%emt 00:00:22]} 54. bxa5 {[%clk 00:14:34]} {[%emt 00:00:17]} bxa5
{[%clk 00:16:42]} {[%emt 00:00:07]} 55. f5 {[%clk 00:13:40]} {[%emt 00:01:23]}
Re2+ {[%clk 00:15:21]} {[%emt 00:01:51]} 56. Kf4 {[%clk 00:12:36]} {[%emt
00:01:33]} Nc5 {[%clk 00:14:12]} {[%emt 00:01:40]} 57. f6+ {[%clk 00:11:56]}
{[%emt 00:01:10]} Kg6 {[%clk 00:14:25]} {[%emt 00:00:17]} 58. g5 {[%clk
00:10:17]} {[%emt 00:02:08]} Ne6+ {[%clk 00:10:55]} {[%emt 00:04:01]} 59. Kf3
{[%clk 00:07:23]} {[%emt 00:03:21]} Re5 {[%clk 00:09:41]} {[%emt 00:01:46]} 60.
Ne7+ {[%clk 00:05:39]} {[%emt 00:02:14]} Kxg5 {[%clk 00:09:18]} {[%emt
00:00:54]} 61. Rxh7 {[%clk 00:05:47]} {[%emt 00:00:20]} Nd4+ {[%clk 00:08:10]}
{[%emt 00:01:39]} 62. Kf2 {[%clk 00:05:40]} {[%emt 00:00:36]} Kxf6 {[%clk
00:08:28]} {[%emt 00:00:13]} 63. Nc6 {[%clk 00:04:44]} {[%emt 00:01:25]} Nxc6
{[%clk 00:05:24]} {[%emt 00:03:35]} 64. Rh6+ {[%clk 00:05:12]} {[%emt
00:00:02]} Kf5 {[%clk 00:05:39]} {[%emt 00:00:18]} 65. Rxc6 {[%clk 00:05:35]}
{[%emt 00:00:04]} Ke4 {[%clk 00:05:56]} {[%emt 00:00:12]} 66. Rd6 {[%clk
00:04:31]} {[%emt 00:01:34]} Kf5 {[%clk 00:03:55]} {[%emt 00:02:32]} 67. Kf3
{[%clk 00:04:38]} {[%emt 00:00:22]} 1/2-1/2